bitfinex/quotes_ETHUSD_20251008
["timestamp","ask_amount","ask_price","bid_price","bid_amount"]
[1759918740696,0.00120001,4494.4,4494.3,2.8586406]
[1759918741028,0.00120001,4494.4,4494.3,2.9698406]
[1759918741244,0.00120001,4494.4,4494.3,3.4212406]
[1759918743315,0.00120001,4494.4,4494.3,3.98587797]
[1759918743714,0.00120001,4494.4,4494.3,4.00812837]
[1759918745013,0.00120001,4494.4,4494.3,3.98587797]
[1759918745212,0.00120001,4494.4,4494.3,3.4212406]
[1759918753125,0.00120001,4494.4,4494.3,3.443491]
[1759918754861,0.012,4494.9,4494.8,2.85839309]
[1759918755359,0.012,4494.9,4494.8,2.67879309]
[1759918755542,0.012,4494.9,4494.8,2.78999309]
[1759918756042,0.012,4494.9,4494.8,2.81224102]
[1759918756633,0.012,4494.9,4494.8,2.78999309]
[1759918757770,0.012,4494.9,4494.8,2.81224102]
[1759918758074,0.012,4494.9,4494.8,2.78999309]
[1759918760741,0.012,4494.9,4494.8,2.81224102]
[1759918763170,0.012,4494.9,4494.8,2.78999309]
[1759918763666,0.0112,4494.9,4494.8,2.78999309]
[1759918764187,0.0112,4494.9,4494.8,2.81224102]
[1759918764981,0.0112,4494.9,4494.8,2.78999309]
[1759918770888,0.0112,4494.9,4494.8,2.81224102]
[1759918772903,0.0112,4494.9,4494.8,2.35824102]
[1759918773194,0.3758,4494.9,4494.8,0.1112]
[1759918773694,2.60058287,4494.9,4494.3,0.001]
[1759918773903,2.22485822,4494.7,4494.3,0.001]
[1759918774275,2.2846,4494.6,4494.3,0.001]
[1759918774474,2.2249911,4494.4,4494.3,0.001]
[1759918775015,2.5895911,4494.4,4494.3,0.001]
[1759918775562,2.0312,4494.5,4494.3,0.001]
[1759918775563,0.1112,4494.5,4494.3,0.001]
[1759918775961,0.0112,4494.9,4494.3,0.001]
[1759918775962,0.0112,4494.9,4494.5,2.22494159]
[1759918776167,0.0112,4494.9,4494.7,2.22484259]
[1759918776395,0.0112,4494.9,4494.8,0.02224793]
[1759918776562,0.0112,4494.9,4494.8,2.24704102]
[1759918776763,0.0112,4494.9,4494.8,2.70754102]
[1759918777893,0.0112,4494.9,4494.8,2.68529309]
[1759918779085,0.0112,4494.9,4494.8,2.70754102]
[1759918779298,0.0112,4494.9,4494.8,2.68529309]
[1759918779894,0.0112,4494.9,4494.7,0.1112]
[1759918780322,0.3646,4494.8,4494.7,0.1112]
[1759918780687,0.0112,4494.9,4494.7,0.1112]
[1759918781324,0.0112,4494.9,4494.8,2.22479309]
[1759918781726,0.0112,4494.9,4494.7,2.79208472]
[1759918782014,0.0112,4494.9,4494.7,0.1112]
[1759918782184,0.0112,4494.9,4494.7,2.33599539]
[1759918782387,0.0112,4494.9,4494.3,0.4348]
[1759918782388,0.0112,4494.9,4494.8,2.35924102]
[1759918783190,0.0112,4494.9,4494.8,2.79304102]
[1759918783428,0.0112,4494.9,4494.8,3.29483189]
[1759918785385,0.0112,4494.9,4494.8,3.92843189]
[1759918785587,0.0112,4494.9,4494.8,18.42843189]
[1759918785817,0.0112,4494.9,4494.8,18.40618396]
[1759918786910,0.0104,4494.9,4494.8,18.40618396]
[1759918787921,0.002,4495.3,4494.8,18.40618396]
[1759918788087,0.002,4495.3,4495.2,2.96939512]
[1759918788285,0.002,4495.3,4495.2,2.99164107]
[1759918788510,0.002,4495.3,4495.2,3.42544107]
[1759918789208,0.002,4495.3,4495.2,17.90319512]
[1759918791730,0.002,4495.3,4495.2,17.79199512]
[1759918791933,0.002,4495.3,4495.2,18.29378599]
[1759918795447,1e-08,4495.4,4495.3,2.85814563]
[1759918795749,1e-08,4495.4,4495.3,3.31419108]
[1759918797915,1e-08,4495.4,4495.3,21.52319213]
[1759918801014,1e-08,4495.4,4495.3,19.60319213]
[1759918801621,1e-08,4495.4,4495.3,21.63439213]
[1759918803814,1e-08,4495.4,4495.3,19.71439213]
[1759918805934,1e-08,4495.4,4495.3,17.26954563]
[1759918806143,1e-08,4495.4,4495.3,2.76954563]
[1759918806519,1e-08,4495.4,4495.3,16.83574563]
[1759918806716,1e-08,4495.4,4495.3,17.28974563]
[1759918809423,1e-08,4495.4,4495.3,17.92334563]
[1759918809652,1e-08,4495.4,4495.3,5.43814191]
[1759918809861,0.01120001,4495.9,4495.4,0.6336]
[1759918810054,0.01120001,4495.9,4495.5,0.02224446]
[1759918810349,0.01120001,4495.9,4495.8,2.33549823]
[1759918810554,0.01120001,4495.9,4495.8,2.81174121]
[1759918811320,0.01120001,4495.9,4495.8,3.33414121]
[1759918811524,0.01120001,4495.9,4495.8,5.45119233]
[1759918811856,0.01120001,4495.9,4495.8,3.42309823]
[1759918812030,0.01120001,4495.9,4495.8,17.94534121]
[1759918812225,0.01120001,4495.9,4495.8,17.92309823]
[1759918812926,0.01120001,4495.9,4495.8,17.46909823]
[1759918813639,0.01120001,4495.9,4495.3,0.454]
[1759918813958,0.01120001,4495.9,4495.7,2.22434656]
[1759918814163,0.01120001,4495.9,4495.8,14.5]
[1759918814372,0.01120001,4495.9,4495.6,2.22439372]
[1759918814669,0.43200001,4495.9,4495.6,2.22439372]
[1759918814965,0.43200001,4495.9,4495.7,2.2243409]
[1759918815256,0.01120001,4495.9,4495.7,2.22430739]
[1759918815553,0.01120001,4495.9,4495.5,2.22443871]
[1759918815745,0.01120001,4495.9,4495.7,2.22434065]
[1759918816351,0.01120001,4495.9,4495.3,14.5]
[1759918816540,0.01120001,4495.9,4495.3,16.72453548]
[1759918816745,0.463,4495.8,4495.3,2.22453548]
[1759918817074,0.60713201,4495.9,4494.8,0.001]
[1759918817075,0.4602,4495.7,4495.1,2.22459941]
[1759918817232,0.4602,4495.7,4494.8,16.72577699]
[1759918817434,0.4602,4495.7,4495.1,2.22462322]
[1759918817633,0.4602,4495.7,4494.8,14.501]
[1759918817936,0.4602,4495.6,4494.8,14.501]
[1759918818247,2.22449615,4495.4,4495.3,0.001]
[1759918818424,4.14449615,4495.4,4495.3,0.001]
[1759918818629,34.60469615,4495.4,4495.3,0.001]
[1759918819040,35.08442993,4495.4,4495.3,0.001]
[1759918819242,37.33620038,4495.4,4495.3,0.001]
[1759918819831,46.8666073,4495.4,4495.3,0.001]
[1759918820031,47.07466005,4495.4,4495.3,0.001]
[1759918821044,7.54425313,4495.4,4495.3,0.001]
[1759918821245,31.27820038,4495.4,4495.3,0.001]
[1759918821432,6.8564666,4495.4,4495.3,0.001]
[1759918821974,0.4602,4495.4,4495.3,0.001]
[1759918822176,4.60469615,4495.4,4495.3,0.001]
[1759918822533,2.3802,4495.4,4495.3,0.001]
[1759918823916,0.01120001,4495.9,4495.3,0.1122]
[1759918824061,0.01120001,4495.9,4495.3,0.455]
[1759918824269,0.01120001,4495.9,4495.8,2.22429823]
[1759918824459,0.01120001,4495.9,4495.8,17.19140835]
[1759918824662,0.01120001,4495.9,4495.8,17.62316537]
[1759918825263,0.01120001,4495.9,4495.8,15.39886714]
[1759918825516,0.01120001,4495.9,4495.8,17.62316537]
[1759918825665,0.01120001,4495.9,4495.8,14.5]
[1759918825864,0.01120001,4495.9,4495.8,16.72429823]
[1759918826171,0.01120001,4495.9,4495.8,2.22429823]
[1759918826388,0.01120001,4495.9,4495.8,2.24654121]
[1759918826566,0.01120001,4495.9,4495.8,17.62539105]
[1759918827619,0.01120001,4495.9,4495.8,16.72429823]
[1759918828590,0.01120001,4495.9,4495.8,14.5]
[1759918829187,0.46860001,4495.9,4495.3,0.001]
[1759918829589,0.46860001,4495.9,4495.6,2.2243869]
[1759918829908,0.01120001,4495.9,4495.7,2.22434562]
[1759918830204,0.01120001,4495.9,4495.6,2.2243906]
[1759918830613,0.4574,4495.8,4495.3,0.001]
[1759918831200,0.4547,4495.7,4495.3,0.001]
[1759918831515,0.4476,4495.6,4495.3,0.001]
[1759918831989,0.4476,4495.5,4495.3,2.22554055]
[1759918832192,0.4476,4495.5,4495.4,2.22449615]
[1759918832522,0.4476,4495.4,4495.3,0.001]
[1759918832821,0.4468,4495.4,4495.3,2.22551845]
[1759918833004,0.4468,4495.4,4495.3,0.001]
[1759918833693,0.4468,4495.4,4495.3,2.22554563]
[1759918834092,2.22444195,4495.6,4495.3,0.001]
[1759918834326,2.22449615,4495.4,4495.3,0.001]
[1759918834902,4.59209615,4495.4,4495.3,0.001]
[1759918836000,2.3676,4495.4,4495.3,0.001]
[1759918836582,4.59209615,4495.4,4495.3,0.001]
[1759918836781,2.3676,4495.4,4495.3,0.001]
[1759918837009,4.86333257,4495.4,4495.3,0.001]
[1759918837783,34.86333257,4495.4,4495.3,0.001]
[1759918840321,12.84833257,4495.4,4495.3,0.001]
[1759918840621,2.63883642,4495.4,4495.3,0.001]
[1759918840800,2.3676,4495.4,4495.3,0.001]
[1759918841194,1.92,4495.4,4495.3,0.001]
[1759918841621,1.92,4495.4,4495.3,2.22554563]
[1759918842009,0.1112,4495.7,4495.5,2.22442415]
[1759918842186,0.1112,4495.7,4495.3,2.22554563]
[1759918842187,0.01120001,4495.9,4495.3,0.001]
[1759918842527,0.01120001,4495.9,4495.6,2.22435321]
[1759918842717,0.01120001,4495.9,4495.7,2.22433827]
[1759918843016,0.01120001,4495.9,4495.6,2.22439718]
[1759918843318,0.47030001,4495.9,4495.6,2.22439718]
[1759918843493,0.47030001,4495.9,4495.7,2.22434751]
[1759918843688,0.01120001,4495.9,4495.7,2.22434751]
[1759918845416,0.01120001,4495.9,4495.5,2.3578868]
[1759918845620,0.01120001,4495.9,4495.5,0.13344446]
[1759918845890,0.01120001,4495.9,4495.6,2.22439718]
[1759918846299,0.01120001,4495.9,4495.8,2.22429823]
[1759918846524,0.01120001,4495.9,4495.8,0.1112]
[1759918846886,0.47030001,4495.9,4495.8,0.1112]
[1759918847090,1.92,4495.8,4495.4,0.1112]
[1759918847309,2.68074942,4495.7,4495.4,0.1112]
[1759918847521,0.4564,4495.6,4495.4,0.1112]
[1759918848095,0.4564,4495.5,4495.4,0.1112]
[1759918849128,2.3764,4495.5,4495.3,0.001]
[1759918849433,0.47120447,4495.4,4495.3,0.001]
[1759918849602,0.1112,4495.7,4495.3,0.001]
[1759918849923,0.5676,4495.8,4495.3,0.001]
[1759918850495,0.4564,4495.7,4495.3,0.001]
[1759918852727,0.1132,4495.8,4495.3,0.001]
[1759918853027,0.4537,4495.7,4495.3,0.001]
[1759918853226,4.14441494,4495.6,4495.3,0.001]
[1759918853403,2.371,4495.6,4495.3,0.001]
[1759918853724,0.1112,4495.5,4495.3,0.001]
[1759918853945,0.5622,4495.5,4495.3,0.001]
[1759918854152,0.451,4495.4,4495.3,0.001]
[1759918855238,0.1112,4495.5,4495.3,0.001]
[1759918857562,0.20332,4495.5,4495.3,0.001]
[1759918857764,0.1112,4495.7,4495.3,0.001]
[1759918858338,0.4494,4495.6,4495.3,0.001]
[1759918858759,0.4494,4495.5,4495.3,0.001]
[1759918861038,0.4494,4495.4,4495.3,0.001]
[1759918861859,3.20351931,4495.7,4495.3,0.001]
[1759918862059,2.3694,4495.6,4495.3,0.001]
[1759918862447,0.4494,4495.5,4495.3,0.001]
[1759918863475,0.4494,4495.4,4495.3,0.001]
[1759918863630,6.24145673,4495.4,4495.3,0.001]
[1759918863834,8.46595288,4495.4,4495.3,0.001]
[1759918864053,6.24145673,4495.4,4495.3,0.001]
[1759918864231,5.46171931,4495.4,4495.3,0.001]
[1759918866753,0.1112,4495.5,4495.3,0.001]
[1759918867667,0.1112,4495.7,4495.3,0.001]
[1759918868131,0.4067,4495.6,4495.3,0.001]
[1759918868764,0.002,4495.8,4495.3,0.001]
[1759918868987,0.002,4495.8,4495.3,2.33673741]
[1759918869363,0.4067,4495.7,4495.3,2.33673741]
[1759918870089,0.002,4495.8,4495.3,2.33673741]
[1759918870289,0.002,4495.8,4495.3,2.33672219]
[1759918870589,0.002,4495.8,4495.7,2.22434771]
[1759918870776,0.002,4495.8,4495.7,2.33554771]
[1759918873474,0.002,4495.8,4495.7,2.80524771]
[1759918874167,0.002,4495.8,4495.7,0.1112]
[1759918874380,0.4087,4495.8,4495.7,0.1112]
[1759918874690,0.002,4495.8,4495.7,0.1112]
[1759918874904,2.79539,4495.8,4495.3,2.22554414]
[1759918875107,0.4067,4495.7,4495.4,2.22447562]
[1759918875281,0.4067,4495.7,4495.3,2.33674065]
[1759918875596,0.002,4495.8,4495.3,0.1122]
[1759918875781,0.002,4495.8,4495.7,2.22434771]
[1759918875984,0.002,4495.8,4495.7,2.33554771]
[1759918876162,0.002,4495.8,4495.7,2.80524771]
[1759918876767,0.002,4495.8,4495.7,6.42500153]
[1759918876966,0.002,4495.8,4495.7,6.40275806]
[1759918877304,0.002,4495.8,4495.7,3.31043875]
[1759918878913,0.0012,4495.8,4495.7,2.84073875]
[1759918879115,0.0012,4495.8,4495.7,3.31043875]
[1759918879916,0.0012,4495.8,4495.7,0.1112]
[1759918880081,0.0012,4495.8,4495.7,2.33554771]
[1759918881403,0.0012,4495.8,4495.7,2.33554771]
[1759918882607,0.0012,4495.8,4495.7,0.1112]
[1759918883807,0.4079,4495.8,4495.7,0.1112]
[1759918884400,0.4079,4495.8,4495.7,2.33554771]
[1759918884729,0.0012,4495.8,4495.7,2.33554771]
[1759918887127,0.0012,4495.8,4495.7,3.31044061]
[1759918890638,0.0012,4495.8,4495.7,2.84074061]
[1759918890799,0.0012,4495.8,4495.7,3.31044061]
[1759918891326,0.0012,4495.8,4495.7,2.84074061]
[1759918891542,0.0012,4495.8,4495.7,3.29704061]
[1759918892122,0.0012,4495.8,4495.7,3.31928408]
[1759918893219,0.0012,4495.8,4495.7,3.95288408]
[1759918894170,0.0012,4495.8,4495.7,3.93064061]
[1759918894457,0.01120001,4495.9,4495.8,2.85789823]
[1759918894458,1e-08,4495.9,4495.8,2.85789823]
[1759918894662,1e-08,4495.9,4495.8,4.56193532]
[1759918894817,1e-08,4495.9,4495.8,4.53969234]
[1759918896415,1e-08,4496.4,4496.0,0.6336]
[1759918896621,1e-08,4496.4,4496.3,4.6740214]
[1759918896930,1e-08,4496.4,4496.3,7.00927228]
[1759918897129,1e-08,4496.4,4496.3,9.96792264]
[1759918898316,1e-08,4496.4,4496.3,6.11560124]
[1759918900549,1e-08,4496.4,4496.3,9.96792264]
[1759918902054,0.00920001,4496.9,4496.7,0.6336]
[1759918902249,0.00920001,4496.9,4496.8,0.02223803]
[1759918902558,0.00920001,4496.9,4496.8,3.60557495]
[1759918903043,0.00920001,4496.9,4496.8,3.62781298]
[1759918903347,0.00920001,4496.9,4496.8,3.60557495]
[1759918903935,0.00920001,4496.9,4496.8,3.62781298]
[1759918904660,0.00920001,4496.9,4496.8,3.60557495]
[1759918905637,0.00920001,4496.9,4496.8,18.10557495]
[1759918906842,0.01120001,4496.9,4496.8,18.10557495]
[1759918907443,0.01120001,4496.9,4496.8,17.64537495]
[1759918907860,0.01120001,4496.9,4496.8,18.10557495]
[1759918908759,0.01120001,4496.9,4496.8,17.47197495]
[1759918908960,0.01120001,4496.9,4496.8,17.18400359]
[1759918910666,0.41130001,4496.9,4495.8,0.001]
[1759918911164,0.41130001,4496.9,4496.1,2.22411589]
[1759918911383,0.4001,4496.8,4496.4,2.22399715]
[1759918911538,0.4001,4496.8,4496.4,2.2239587]
[1759918911863,0.01120001,4496.9,4496.0,2.22419928]
[1759918911864,0.4001,4496.7,4496.0,2.22419928]
[1759918912065,0.4001,4496.7,4496.3,0.1112]
[1759918912368,0.4001,4496.7,4496.4,2.22399326]
[1759918913071,0.4001,4496.7,4496.3,2.33524256]
[1759918913570,0.4001,4496.6,4496.3,0.1112]
[1759918913775,0.4001,4496.5,4496.3,0.1112]
[1759918914676,0.26350951,4496.6,4496.3,0.1112]
[1759918914976,0.4001,4496.8,4496.3,0.1112]
[1759918915176,0.4001,4496.7,4496.3,0.1112]
[1759918915690,0.4001,4496.6,4496.3,0.1112]
[1759918916782,0.4001,4496.6,4496.3,2.33523864]
[1759918916974,0.41130001,4496.9,4496.3,2.33523864]
[1759918917177,0.27453668,4496.8,4496.3,2.33523864]
[1759918917485,0.4001,4496.7,4496.3,2.33523864]
[1759918917687,0.01120001,4496.9,4496.1,0.02224149]
[1759918917865,0.4001,4496.8,4495.8,0.001]
[1759918918052,0.4001,4496.8,4495.9,2.22424875]
[1759918918258,0.4001,4496.7,4495.9,2.22424875]
[1759918918575,0.4001,4496.7,4496.2,2.22405913]
[1759918918781,0.4001,4496.6,4495.9,2.2242115]
[1759918918977,0.4001,4496.6,4496.0,2.22419747]
[1759918919354,0.4001,4496.6,4495.9,2.22424746]
[1759918919975,0.4001,4496.6,4496.0,0.02224199]
[1759918920552,0.4001,4496.6,4496.1,2.22410587]
[1759918920859,0.4001,4496.5,4496.2,2.22409495]
[1759918921588,0.4001,4496.5,4496.0,0.02224199]
[1759918921790,0.4001,4496.4,4496.0,0.02224199]
[1759918921994,0.4001,4496.4,4496.1,2.2241062]
[1759918923088,0.01120001,4496.9,4496.1,2.2241062]
[1759918923260,0.01120001,4496.9,4495.9,0.02224248]
[1759918923467,0.01120001,4496.9,4496.4,2.22397325]
[1759918923666,0.24433001,4496.9,4496.4,0.4302]
[1759918923882,0.01120001,4496.9,4496.4,0.4302]
[1759918924085,0.01120001,4496.9,4496.5,2.22391156]
[1759918924299,0.01120001,4496.9,4496.4,0.02224001]
[1759918924474,0.01120001,4496.9,4496.7,2.22380731]
[1759918924870,0.01120001,4496.9,4496.6,0.02223902]
[1759918925096,0.01040001,4496.9,4496.7,2.22385304]
[1759918925461,0.01040001,4496.9,4496.8,2.22380359]
[1759918925882,0.01040001,4496.9,4496.7,2.22384313]
[1759918926503,0.01040001,4496.9,4496.6,2.22388957]
[1759918926672,0.01040001,4496.9,4496.4,0.4302]
[1759918926864,0.41050001,4496.9,4496.0,0.001]
[1759918927064,0.41050001,4496.9,4496.5,2.22394523]
[1759918927286,0.41050001,4496.9,4496.6,2.22390022]
[1759918927885,0.41050001,4496.9,4496.8,0.1104]
[1759918931373,0.41050001,4496.9,4496.1,0.6336]
[1759918931374,2.63425415,4496.9,4496.0,0.001]
[1759918931576,0.41050001,4496.9,4496.5,0.1104]
[1759918931776,0.41050001,4496.9,4496.0,0.001]
[1759918931979,4.60627141,4496.9,4496.2,0.1112]
[1759918932507,6.07636131,4496.4,4496.2,0.1112]
[1759918932870,2.22414981,4496.1,4496.0,0.001]
[1759918933174,4.54424981,4496.1,4496.0,0.001]
[1759918933586,35.02358394,4496.1,4496.0,0.001]
[1759918933794,37.48341241,4496.1,4496.0,0.001]
[1759918934213,37.57259053,4496.1,4496.0,0.001]
[1759918935715,37.36453251,4496.1,4496.0,0.001]
[1759918936022,37.57234764,4496.1,4496.0,0.001]
[1759918936221,37.36453251,4496.1,4496.0,0.001]
[1759918936388,37.57228804,4496.1,4496.0,0.001]
[1759918938223,37.36453251,4496.1,4496.0,0.001]
[1759918938631,11.49153251,4496.1,4496.0,0.001]
[1759918938832,11.01219838,4496.1,4496.0,0.001]
[1759918939128,7.46002026,4496.1,4496.0,0.001]
[1759918939323,9.38002026,4496.1,4496.0,0.001]
[1759918939527,19.22302026,4496.1,4496.0,0.001]
[1759918939827,17.32802026,4496.1,4496.0,0.001]
[1759918940136,19.24802026,4496.1,4496.0,0.001]
[1759918940300,19.00702026,4496.1,4496.0,0.001]
[1759918940700,21.30702026,4496.1,4496.0,0.001]
[1759918941835,36.79602026,4496.1,4496.0,0.001]
[1759918942129,37.59853543,4496.1,4496.0,0.001]
[1759918943564,37.68771872,4496.1,4496.0,0.001]
[1759918944016,43.66628112,4496.1,4496.0,0.001]
[1759918944417,40.57314534,4496.1,4496.0,0.001]
[1759918948132,40.57234534,4496.1,4496.0,0.001]
[1759918948327,2.22424875,4495.9,4495.8,0.001]
[1759918948626,2.22424875,4495.9,4495.3,0.001]
[1759918948627,2.22439718,4495.6,4495.3,0.001]
[1759918948831,2.22449615,4495.4,4495.3,0.001]
[1759918949031,34.62304792,4495.4,4495.3,0.001]
[1759918949230,35.12194374,4495.4,4495.3,0.001]
[1759918950403,40.82966353,4495.4,4495.3,0.001]
[1759918950627,42.80525646,4495.4,4495.3,0.001]
[1759918954539,39.23418198,4495.4,4495.3,0.001]
[1759918954745,9.14498616,4495.4,4495.3,0.001]
[1759918955122,8.42333193,4495.4,4495.3,0.001]
[1759918955445,8.20433193,4495.4,4495.3,0.001]
[1759918955617,10.12433193,4495.4,4495.3,0.001]
[1759918955809,7.64733193,4495.4,4495.3,0.001]
[1759918956034,37.64733193,4495.4,4495.3,0.001]
[1759918957052,38.98659676,4495.4,4495.3,0.001]
[1759918957961,8.98659676,4495.4,4495.3,0.001]
[1759918958246,38.98659676,4495.4,4495.3,0.001]
[1759918960712,12.99859676,4495.4,4495.3,0.001]
[1759918960919,2.0312,4495.4,4495.3,0.001]
[1759918961120,5.53403578,4495.4,4495.3,0.001]
[1759918961921,7.75853193,4495.4,4495.3,0.001]
[1759918962151,5.53403578,4495.4,4495.3,0.001]
[1759918962321,7.75853193,4495.4,4495.3,0.001]
[1759918962825,2.4409,4495.4,4495.3,0.001]
[1759918963920,2.0312,4495.4,4495.3,0.001]
[1759918964423,2.4409,4495.4,4495.3,0.001]
[1759918966840,4.66539615,4495.4,4495.3,0.001]
[1759918967061,5.66369012,4495.4,4495.3,0.001]
[1759918967239,4.66539615,4495.4,4495.3,0.001]
[1759918968038,2.4409,4495.4,4495.3,0.001]
[1759918968455,1.92,4495.4,4495.3,0.001]
[1759918970947,1.9192,4495.4,4495.3,0.001]
[1759918971862,0.1112,4495.8,4495.3,0.001]
[1759918972471,0.4162,4495.7,4495.3,0.001]
[1759918972669,3.20939002,4496.1,4495.3,0.001]
[1759918972670,0.11625424,4496.1,4495.4,0.4531]
[1759918972846,0.11625424,4496.1,4495.6,0.1112]
[1759918973048,0.11625424,4496.1,4496.0,2.22419928]
[1759918973271,0.01040001,4496.9,4496.1,2.22414981]
[1759918973444,0.01040001,4496.9,4496.2,2.22408864]
[1759918973644,0.01040001,4496.9,4496.3,2.22405006]
[1759918974250,0.01040001,4496.9,4496.2,2.22405996]
[1759918974878,0.01040001,4496.9,4496.3,2.22404385]
[1759918975087,0.01040001,4496.9,4496.1,2.24638669]
[1759918975249,0.01040001,4496.9,4496.2,1.71994867]
[1759918975672,0.01040001,4496.9,4496.3,2.22400782]
[1759918979784,0.01040001,4496.9,4496.4,2.22398771]
[1759918980178,0.01040001,4496.9,4496.5,0.4531]
[1759918980721,0.01040001,4496.9,4496.3,2.22402346]
[1759918980876,0.01040001,4496.9,4496.4,0.26993645]
[1759918981075,0.01040001,4496.9,4496.8,2.22380359]
[1759918981788,0.01040001,4496.9,4496.8,2.67060359]
[1759918982984,0.01040001,4496.9,4496.8,2.78100359]
[1759918983311,1.92,4498.4,4497.6,2.22337497]
[1759918983521,0.72361069,4498.3,4497.6,2.22337497]
[1759918984182,0.72361069,4498.3,4497.7,2.22335844]
[1759918984374,5.44093578,4498.4,4497.7,2.22335844]
[1759918984574,3.09313578,4498.7,4497.8,0.02223309]
[1759918984778,0.4278,4498.8,4497.7,0.4468]
[1759918985016,0.4278,4498.8,4498.0,2.22316461]
[1759918985176,0.4278,4498.8,4498.1,2.22314713]
[1759918985576,1.93,4498.9,4498.2,2.22310258]
[1759918985800,0.01,4498.9,4498.2,2.22310258]
[1759918986124,0.01,4498.9,4498.3,0.46903062]
[1759918986321,0.01,4498.9,4498.7,2.22286069]
[1759918986521,0.01,4498.9,4498.8,0.02222814]
[1759918986825,0.01,4498.9,4498.8,2.22281497]
[1759918986999,0.01,4498.9,4498.8,2.69184311]
[1759918987203,0.01,4498.9,4498.8,3.49263238]
[1759918989401,0.01,4498.9,4498.8,1.24758927]
[1759918989630,0.01,4498.9,4498.8,0.4468]
[1759918989795,0.01,4498.9,4498.8,2.66961497]
[1759918990197,0.01,4498.9,4498.8,14.5]
[1759918991196,0.01,4498.9,4498.8,20.89635075]
[1759918991430,0.01,4498.9,4498.8,22.81635075]
[1759918991627,0.01,4498.9,4498.8,24.36791238]
[1759918991924,0.01,4498.9,4498.8,21.2747766]
[1759918993298,0.01,4498.9,4498.8,21.3851766]
[1759918994099,0.0092,4498.9,4498.8,21.3851766]
[1759918994837,0.0092,4498.9,4498.8,19.4651766]
[1759918995224,0.0092,4498.9,4498.8,15.6908]
[1759918995428,0.0092,4498.9,4498.8,17.91361497]
[1759918995999,0.0092,4498.9,4498.8,17.46681497]
[1759918996516,0.0092,4498.9,4498.8,17.91361497]
[1759918996728,0.0112,4498.9,4498.8,17.91361497]
[1759918998739,0.0112,4498.9,4498.8,14.6104]
[1759918998952,0.0112,4498.9,4498.8,0.1104]
[1759918999125,0.0112,4498.9,4498.8,2.33321497]
[1759919000124,0.0112,4498.9,4498.8,0.1104]
[1759919000310,0.0112,4498.9,4498.8,2.80224311]
[1759919000640,0.0112,4498.9,4498.8,5.25734119]
[1759919000808,0.0112,4498.9,4498.8,3.41361497]
[1759919001008,0.0112,4498.9,4498.8,3.43584311]
[1759919001236,0.0112,4498.9,4498.8,17.91361497]
[1759919003241,0.0112,4498.9,4498.8,17.28001497]
[1759919004343,0.0112,4498.9,4498.8,15.0572]
[1759919004660,0.0112,4498.9,4498.8,17.28001497]
[1759919005226,0.0112,4498.9,4498.8,16.83321497]
[1759919005471,0.0112,4498.9,4498.8,17.28001497]
[1759919005755,0.0112,4498.9,4498.8,19.23030651]
[1759919005924,0.0112,4498.9,4498.8,19.86390651]
[1759919007933,0.0112,4498.9,4498.8,16.83321497]
[1759919008148,0.0112,4498.9,4498.8,2.33321497]
[1759919008749,0.0112,4498.9,4498.8,16.83321497]
[1759919008925,0.0112,4498.9,4498.8,17.28001497]
[1759919009128,0.0112,4498.9,4498.8,16.83321497]
[1759919009764,0.0112,4498.9,4498.8,17.28001497]
[1759919010942,0.0112,4498.9,4498.8,16.83321497]
[1759919011570,0.0112,4498.9,4498.8,17.27821497]
[1759919012675,0.0112,4498.9,4498.8,19.22832514]
[1759919013672,0.0112,4498.9,4498.8,17.27821497]
[1759919013844,0.0112,4498.9,4498.8,2.77821497]
[1759919014462,0.0112,4498.9,4498.8,17.27921497]
[1759919015169,0.0112,4498.9,4498.8,16.83421497]
[1759919016244,0.0112,4498.9,4498.8,14.6114]
[1759919016662,0.0112,4498.9,4498.8,0.1114]
[1759919017061,0.0104,4498.9,4498.8,2.33421497]
[1759919017384,0.0104,4498.9,4498.8,0.1114]
[1759919017591,0.0104,4498.9,4498.8,2.77921497]
[1759919017888,0.0104,4498.9,4498.8,2.80144311]
[1759919020863,0.0104,4498.9,4498.8,2.77921497]
[1759919021270,0.0104,4498.9,4498.8,17.27921497]
[1759919023576,0.0104,4498.9,4498.8,16.83421497]
[1759919023906,0.0104,4498.9,4498.8,14.6114]
[1759919024198,0.0104,4498.9,4498.8,0.1114]
[1759919024567,0.4615,4498.9,4498.8,0.001]
[1759919024769,4.60426556,4498.9,4498.8,0.001]
[1759919024974,5.77765989,4498.9,4498.8,0.001]
[1759919025383,5.98592337,4498.9,4498.8,0.001]
[1759919025618,6.78731467,4498.9,4498.8,0.001]
[1759919025795,35.98592337,4498.9,4498.8,0.001]
[1759919026508,37.82400475,4498.9,4498.8,0.001]
[1759919026800,36.61952337,4498.9,4498.8,0.001]
[1759919027704,37.81666291,4498.9,4498.8,0.001]
[1759919028080,36.61952337,4498.9,4498.8,0.001]
[1759919029786,6.61952337,4498.9,4498.8,0.001]
[1759919029988,36.61952337,4498.9,4498.8,0.001]
[1759919030386,35.98592337,4498.9,4498.8,0.001]
[1759919030706,35.98502739,4498.9,4498.8,0.001]
[1759919031894,5.98502739,4498.9,4498.8,0.001]
[1759919032207,35.98502739,4498.9,4498.8,0.001]
[1759919032910,35.77765989,4498.9,4498.8,0.001]
[1759919033099,34.76965989,4498.9,4498.8,0.001]
[1759919033302,12.45265989,4498.9,4498.8,0.001]
[1759919033691,8.2409988,4498.9,4498.8,0.001]
[1759919034012,5.2979988,4498.9,4498.8,0.001]
[1759919034310,24.6179988,4498.9,4498.8,0.001]
[1759919034518,4.60426556,4498.9,4498.8,0.001]
[1759919034714,34.60426556,4498.9,4498.8,0.001]
[1759919035082,35.08170501,4498.9,4498.8,0.001]
[1759919036211,35.17083345,4498.9,4498.8,0.001]
[1759919036520,37.4226039,4498.9,4498.8,0.001]
[1759919036906,36.94516445,4498.9,4498.8,0.001]
[1759919037102,37.42255624,4498.9,4498.8,0.001]